fUST/lending_fUST_20250117
["ID","MTS","AMOUNT","RATE_DAILY","PERIOD"]
[349237110,1737065821728,500.0,0.00022436,120]
[349237111,1737065822476,500.0,0.00022436,120]
[349237112,1737065823228,500.0,0.00022436,120]
[349237113,1737065823979,500.0,0.00022436,120]
[349237114,1737065824729,500.0,0.00022436,120]
[349237115,1737065825478,500.0,0.00022436,120]
[349237116,1737065826226,500.0,0.00022436,120]
[349237117,1737065826976,500.0,0.00022436,120]
[349237118,1737065827728,500.0,0.00022436,120]
[349237119,1737065828505,500.0,0.00022436,120]
[349237120,1737065829276,500.0,0.00022436,120]
[349237121,1737065830121,500.0,0.00022436,120]
[349237122,1737065830861,500.0,0.00022436,120]
[349237123,1737065831616,500.0,0.00022436,120]
[349237124,1737065832387,500.0,0.00022436,120]
[349237125,1737065833136,500.0,0.00022436,120]
[349237126,1737065834300,500.0,0.00022436,120]
[349237127,1737065835298,500.0,0.00022436,120]
[349237128,1737065835989,500.0,0.00022436,120]
[349237129,1737065836742,500.0,0.00022436,120]
[349237130,1737065837484,500.0,0.00022436,120]
[349237131,1737065839317,500.0,0.00022436,120]
[349237132,1737065840078,500.0,0.00022436,120]
[349237133,1737065840837,500.0,0.00022436,120]
[349237134,1737065841587,500.0,0.00022436,120]
[349237135,1737065842342,500.0,0.00022436,120]
[349237136,1737065843109,500.0,0.00022436,120]
[349237137,1737065843860,500.0,0.00022436,120]
[349237138,1737065844611,500.0,0.00022436,120]
[349237139,1737065845781,500.0,0.00022436,120]
[349237140,1737065846471,500.0,0.00022436,120]
[349237141,1737065847220,500.0,0.00022436,120]
[349237142,1737065847977,500.0,0.00022436,120]
[349237143,1737065848731,500.0,0.00022436,120]
[349237144,1737065849573,500.0,0.00022436,120]
[349237145,1737065850530,500.0,0.00022436,120]
[349237146,1737065850742,160.0,0.00024483,120]
[349237147,1737065851269,500.0,0.00022436,120]
[349237148,1737065852022,500.0,0.00022436,120]
[349237149,1737065852759,500.0,0.00022436,120]
[349237150,1737065853517,500.0,0.00022436,120]
[349237151,1737065854292,500.0,0.00022436,120]
[349237152,1737065855075,500.0,0.00022436,120]
[349237153,1737065855870,500.0,0.00022436,120]
[349237154,1737065856571,500.0,0.00022436,120]
[349237155,1737065857322,500.0,0.00022436,120]
[349237156,1737065858069,500.0,0.00022436,120]
[349237157,1737065858816,500.0,0.00022436,120]
[349237158,1737065859570,500.0,0.00022436,120]
[349237159,1737065860335,500.0,0.00022436,120]
[349237160,1737065861073,500.0,0.00022436,120]
[349237161,1737065861883,500.0,0.00022436,120]
[349237162,1737065862759,500.0,0.00022436,120]
[349237163,1737065863385,500.0,0.00022436,120]
[349237164,1737065864149,500.0,0.00022436,120]
[349237165,1737065864891,500.0,0.00022436,120]
[349237166,1737065865625,500.0,0.00022436,120]
[349237167,1737065866363,500.0,0.00022436,120]
[349237168,1737065867154,500.0,0.00022436,120]
[349237169,1737065867902,500.0,0.00022436,120]
[349237170,1737065868664,500.0,0.00022436,120]
[349237171,1737065869413,500.0,0.00022436,120]
[349237172,1737065870161,500.0,0.00022436,120]
[349237173,1737065870908,500.0,0.00022436,120]
[349237174,1737065871747,500.0,0.00022436,120]
[349237175,1737065872501,500.0,0.00022436,120]
[349237176,1737065873274,500.0,0.00022436,120]
[349237177,1737065874038,500.0,0.00022436,120]
[349237178,1737065875157,500.0,0.00022436,120]
[349237179,1737065876281,500.0,0.00022436,120]
[349237180,1737065877157,500.0,0.00022436,120]
[349237181,1737065877870,500.0,0.00022436,120]
[349237182,1737065878770,500.0,0.00022436,120]
[349237183,1737065879522,500.0,0.00022436,120]
[349237184,1737065880271,500.0,0.00022436,120]
[349237185,1737065881025,500.0,0.00022436,120]
[349237186,1737065881767,500.0,0.00022436,120]
[349237187,1737065882534,500.0,0.00022436,120]
[349237188,1737065883302,500.0,0.00022436,120]
[349237189,1737065884063,500.0,0.00022436,120]
[349237190,1737065884820,500.0,0.00022436,120]
[349237191,1737065885605,500.0,0.00022436,120]
[349237192,1737065886352,566.98,0.00022436,120]
[349237193,1737065910757,160.0,0.00023391,120]
[349237194,1737065953461,500.0,0.00022436,120]
[349237195,1737065970767,160.0,0.00023385,120]
[349237196,1737066007295,1732.98,0.00023225,120]
[349237197,1737066030854,160.0,0.00024798,120]
[349237198,1737066150755,160.0,0.00024021,120]
[349237199,1737066210738,160.0,0.00022782,120]
[349237200,1737066226743,206.335268,0.0002411,120]
[349237201,1737066270717,160.0,0.00022809,120]
[349237203,1737066331317,160.0,0.00023554,120]
[349237215,1737066391292,160.0,0.00024012,120]
[349237216,1737066405142,-303.6813159,0.0001845,2]
[349237217,1737066405163,-166.831564,0.00019178,2]
[349237218,1737066405184,-300.0,0.00019378,2]
[349237219,1737066405206,-11419.3398851,0.0001938,2]
[349237241,1737066451272,160.0,0.00022872,120]
[349237256,1737066491489,390.46228336,0.000248,120]
[349237258,1737066499654,1038.31265964,0.0002,120]
[349237259,1737066503064,188.0,0.0002,120]
[349237260,1737066508765,181.27076734,0.00025,120]
[349237261,1737066508901,305.08447961,7e-05,120]
[349237262,1737066510742,160.0,0.00023825,120]
[349237263,1737066517323,2198.41345435,0.00025,120]
[349237264,1737066517737,1249.02625689,0.0002,120]
[349237265,1737066520044,1567.18386178,0.00025,120]
[349237266,1737066520128,556.47221935,0.00025,120]
[349237268,1737066522650,985.5904653,0.0002202,120]
[349237271,1737066525490,508.89148865,0.00025,120]
[349237273,1737066526175,624.91924463,0.00025,120]
[349237276,1737066579646,158.390204,0.00013973,2]
[349237291,1737066612381,10000.0,0.00025,120]
[349237292,1737066630801,160.0,0.00022715,120]
[349237369,1737066632663,-300.0,0.00019377,2]
[349237371,1737066632673,-7218.0,0.00019377,2]
[349237373,1737066632682,-567.7,0.00019378,2]
[349237375,1737066632692,-13684.55282544,0.00019381,2]
[349237382,1737066632751,-7104.38256696,0.00019381,2]
[349237384,1737066632760,-367.82291192,0.000198,2]
[349237386,1737066632769,-170.10534717,0.00019888,5]
[349237388,1737066632779,-168.2925,0.00019888,5]
[349237390,1737066632788,-14828.30550729,0.00019888,7]
[349237393,1737066632799,-1336.53056753,0.00019888,7]
[349237450,1737066638421,-1108.29206995,0.00019888,7]
[349237451,1737066638434,-6296.87247007,0.00019888,7]
[349237452,1737066638447,-6157.57944564,0.00019888,7]
[349237453,1737066638460,-597.981,0.00019888,7]
[349237454,1737066638472,-14016.66609387,0.00019888,7]
[349237455,1737066638499,-1063.61729777,0.00019888,7]
[349237459,1737066640771,-104161.12733922,0.00019888,7]
[349237461,1737066640780,-182.32714222,0.000199,2]
[349237462,1737066640790,-152.02,0.0002,2]
[349237463,1737066640800,-154.71,0.0002,2]
[349237464,1737066640809,-500.0,0.00020169,2]
[349237465,1737066640819,-731.23974826,0.00020336,2]
[349237466,1737066640828,-367.82291187,0.00020337,2]
[349237467,1737066640838,-1246.86861037,0.00020599,2]
[349237492,1737066643469,-112.78422165,0.00020599,2]
[349237494,1737066643479,-9743.39668151,0.00020656,2]
[349237501,1737066646270,-1354.428085,0.00020656,2]
[349237513,1737066690768,160.0,0.00024721,120]
[349237515,1737066751348,160.0,0.00023954,120]
[349237518,1737066810868,160.0,0.00022939,120]
[349237519,1737066870730,160.0,0.00024194,120]
[349237520,1737066930747,160.0,0.0002393,120]
[349237521,1737066990724,160.0,0.00023894,120]
[349237522,1737067000071,377.75378,0.00025,120]
[349237523,1737067050759,160.0,0.0002453,120]
[349237524,1737067171255,160.0,0.00023598,120]
[349237525,1737067212753,1028.0,0.00025,120]
[349237526,1737067230529,160.0,0.00023611,120]
[349237527,1737067290789,160.0,0.00024727,120]
[349237529,1737067470864,160.0,0.00024214,120]
[349237532,1737067479593,158.893265,0.00013973,2]
[349237533,1737067499532,384.88646509,0.00025,120]
[349237534,1737067591861,160.0,0.00022592,120]
[349237544,1737067634216,2008.71,0.00025,120]
[349237545,1737067650762,160.0,0.00024103,120]
[349237546,1737067710796,160.0,0.00024376,120]
[349237554,1737067761212,204.210809,0.0002411,120]
[349237557,1737067771481,160.0,0.00023718,120]
[349237560,1737067830794,160.0,0.00023153,120]
[349237641,1737067832947,-487.49316551,0.00017974,2]
[349237643,1737067832956,-769.33883486,0.00018703,2]
[349237645,1737067832965,-1228.2965479,0.00018803,2]
[349237647,1737067832975,-194.1171973,0.00018981,2]
[349237649,1737067832984,-166.891748,0.00019178,2]
[349237651,1737067832993,-200.0,0.0001938,2]
[349237653,1737067833002,-501.80145396,0.0001938,3]
[349237655,1737067833012,-154.71,0.00019654,2]
[349237657,1737067833021,-182.32714222,0.000198,2]
[349237660,1737067833030,-275.86718392,0.000198,2]
[349237663,1737067833039,-294.54658706,0.000198,2]
[349237665,1737067833048,-300.0,0.00019859,2]
[349237667,1737067833057,-4593.0,0.00019859,2]
[349237669,1737067833066,-308.712,0.00019861,2]
[349237670,1737067833076,-500.0,0.00019865,2]
[349237673,1737067833085,-500.0,0.00019865,2]
[349237675,1737067833095,-285.2295484,0.00019865,3]
[349237677,1737067833105,-20389.3842642,0.00019866,2]
[349237678,1737067833114,-170.10534717,0.00019878,5]
[349237681,1737067833125,-168.2925,0.00019878,5]
[349237683,1737067833135,-95342.35352862,0.00019878,2]
[349237685,1737067833147,-40678.85195004,0.00019878,2]
[349237687,1737067833158,-20775.870444,0.00019878,2]
[349237859,1737067838725,-298.5,0.00019878,2]
[349237862,1737067838738,-3966.36441773,0.00019878,2]
[349237864,1737067838749,-49569.69768177,0.00019878,2]
[349237866,1737067838759,-955.99612162,0.000199,2]
[349237868,1737067838768,-150.0,0.0002,2]
[349237870,1737067838778,-500.0,0.00020002,2]
[349237872,1737067838787,-955.99612162,0.00020038,2]
[349237874,1737067838796,-500.0,0.00020139,2]
[349237876,1737067838806,-500.0,0.00020169,2]
[349237878,1737067838815,-955.99612162,0.00020176,2]
[349237880,1737067838827,-500.0,0.00020276,2]
[349237882,1737067838836,-955.99612162,0.00020314,2]
[349237884,1737067838845,-224413.86613557,0.00020337,2]
[349237886,1737067838859,-10969.271389,0.00020337,2]
[349237888,1737067838870,-13303.41127733,0.00020337,2]
[349237890,1737067838880,-275.8671839,0.00020338,2]
[349237892,1737067838889,-500.0,0.00020413,2]
[349237894,1737067838898,-955.99612162,0.00020452,2]
[349237896,1737067838907,-172.0766836,0.00020521,2]
[349237898,1737067838916,-220.25,0.0002055,2]
[349237900,1737067838926,-955.99612162,0.0002059,2]
[349237902,1737067838935,-500.0,0.00020655,2]
[349237904,1737067838945,-186.45164967,0.00020655,2]
[349237906,1737067838955,-500.0,0.00020655,2]
[349237907,1737067838964,-423.53813192,0.00020655,2]
[349237909,1737067838974,-3111.79427155,0.00020656,2]
[349237911,1737067838984,-151.0,0.00020656,2]
[349237912,1737067838993,-497.821,0.0002068,2]
[349237913,1737067839002,-955.99612162,0.00020728,2]
[349237914,1737067839011,-353.5154054,0.00020795,2]
[349237915,1737067839021,-353.5154054,0.00020795,2]
[349237916,1737067839030,-353.5154054,0.00020795,2]
[349237917,1737067839040,-353.5154054,0.00020795,2]
[349237918,1737067839049,-353.5154054,0.00020795,2]
[349237919,1737067839059,-353.5154054,0.00020795,2]
[349237920,1737067839068,-353.5154054,0.00020795,2]
[349237921,1737067839077,-302.0584643,0.00020795,2]
[349237922,1737067839087,-955.99612162,0.00020866,2]
[349237923,1737067839096,-275.8671839,0.00020876,2]
[349237924,1737067839105,-300.0,0.00021,9]
[349237925,1737067839115,-955.99612162,0.00021003,2]
[349237926,1737067839124,-151.0,0.00021046,2]
[349237927,1737067839133,-151.0,0.00021046,2]
[349237928,1737067839143,-151.0,0.00021046,2]
[349237929,1737067839152,-151.0,0.00021046,2]
[349237930,1737067839162,-249.340078,0.00021046,2]
[349237931,1737067839172,-151.0,0.00021046,2]
[349237932,1737067839181,-151.284,0.00021046,2]
[349237933,1737067839200,-249.340078,0.00021046,2]
[349237934,1737067839211,-151.0,0.00021046,2]
[349237935,1737067839221,-151.0,0.00021046,2]
[349237936,1737067839231,-151.0,0.00021046,2]
[349237937,1737067839240,-151.0,0.00021046,2]
[349237938,1737067839250,-151.0,0.00021046,2]
[349237939,1737067839260,-548.964824,0.00021046,2]
[349237940,1737067839270,-548.964824,0.00021046,2]
[349237941,1737067839280,-151.0,0.00021046,2]
[349237942,1737067839289,-151.0,0.00021046,2]
[349237943,1737067839299,-500.0,0.00021073,2]
[349237944,1737067839309,-500.0,0.00021073,2]
[349237945,1737067839319,-500.0,0.00021073,2]
[349237946,1737067839328,-1067.68,0.000211,2]
[349237947,1737067839339,-3156.35,0.000211,2]
[349237948,1737067839349,-6555.52,0.000211,2]
[349237949,1737067839359,-151.0,0.000211,2]
[349237950,1737067839369,-151.0,0.000211,2]
[349237951,1737067839379,-151.0,0.000211,2]
[349237952,1737067839388,-151.0,0.000211,2]
[349237953,1737067839398,-151.0,0.000211,2]
[349237954,1737067839407,-151.0,0.000211,2]
[349237955,1737067839417,-151.0,0.000211,2]
[349237956,1737067839426,-548.964824,0.000211,2]
[349237957,1737067839436,-548.964824,0.000211,2]
[349237958,1737067839445,-620.0,0.000211,2]
[349237959,1737067839455,-955.99612162,0.00021141,2]
[349237960,1737067839464,-150.0,0.00021257,2]
[349237961,1737067839474,-581.885,0.00021257,2]
[349237962,1737067839484,-2155.887,0.00021257,2]
[349237963,1737067839493,-2320.0,0.00021257,2]
[349237964,1737067839503,-955.99612162,0.00021279,2]
[349237965,1737067839513,-339.0723873,0.00021282,2]
[349237966,1737067839522,-275.8671839,0.00021414,2]
[349237967,1737067839532,-955.99612162,0.00021417,2]
[349237968,1737067839541,-151.0,0.00021496,2]
[349237969,1737067839551,-502.54347369,0.000215,2]
[349237970,1737067839560,-151.0,0.00021555,2]
[349237971,1737067839570,-249.340078,0.00021555,2]
[349237972,1737067839580,-249.340078,0.00021555,2]
[349237973,1737067839590,-500.0,0.00021555,2]
[349237974,1737067839600,-500.0,0.00021555,2]
[349237975,1737067839609,-955.99612162,0.00021555,2]
[349237976,1737067839619,-1000.0,0.00021621,2]
[349237977,1737067839629,-1000.0,0.00021621,2]
[349237978,1737067839638,-162.851738,0.00021621,2]
[349237979,1737067839648,-151.0,0.00021621,2]
[349237980,1737067839658,-227.950792,0.00021621,2]
[349237981,1737067839667,-194.033057,0.00021621,2]
[349237982,1737067839677,-548.964824,0.00021621,2]
[349237983,1737067839687,-548.964824,0.00021621,2]
[349237984,1737067839696,-420.0,0.00021627,2]
[349237985,1737067839707,-500.0,0.00021629,2]
[349237986,1737067839716,-580.13444843,0.00021657,2]
[349237987,1737067839725,-500.0,0.00021669,2]
[349237988,1737067839735,-500.0,0.00021692,2]
[349237989,1737067839744,-955.99612162,0.00021693,3]
[349237990,1737067839754,-151.0,0.00021715,2]
[349237991,1737067839763,-234.434032,0.00021715,2]
[349237992,1737067839773,-151.0,0.00021715,2]
[349237993,1737067839782,-151.0,0.00021715,2]
[349237994,1737067839792,-151.0,0.00021715,2]
[349237995,1737067839802,-151.0,0.00021715,2]
[349237996,1737067839812,-151.0,0.00021753,2]
[349237997,1737067839824,-151.0,0.00021753,2]
[349237998,1737067839833,-1805.0,0.00021788,4]
[349237999,1737067839843,-955.99612162,0.00021831,3]
[349238000,1737067839852,-275.8671839,0.00021951,2]
[349238001,1737067839862,-501.67423928,0.00021955,2]
[349238002,1737067839871,-955.99612162,0.00021969,3]
[349238003,1737067839882,-62870.0,0.00022,2]
[349238004,1737067839893,-151.0,0.00022,7]
[349238005,1737067839903,-151.0,0.00022,7]
[349238006,1737067839914,-151.0,0.00022,7]
[349238007,1737067839924,-151.438941,0.00022,7]
[349238008,1737067839933,-151.0,0.00022,7]
[349238009,1737067839943,-155.531659,0.00022,7]
[349238010,1737067839953,-151.0,0.00022,7]
[349238011,1737067839962,-151.0,0.00022,7]
[349238012,1737067839971,-151.0,0.00022,7]
[349238013,1737067839981,-151.0,0.00022,7]
[349238014,1737067839990,-151.0,0.00022,7]
[349238015,1737067839999,-151.0,0.00022,7]
[349238016,1737067840009,-151.0,0.00022,7]
[349238017,1737067840020,-151.0,0.00022,7]
[349238018,1737067840033,-151.0,0.00022,7]
[349238019,1737067840044,-151.0,0.00022,7]
[349238020,1737067840053,-249.340078,0.00022,7]
[349238021,1737067840063,-249.340078,0.00022,7]
[349238022,1737067840072,-151.0,0.00022,7]
[349238023,1737067840083,-548.964824,0.00022,7]
[349238024,1737067840093,-548.964824,0.00022,7]
[349238025,1737067840105,-955.99612162,0.00022107,3]
[349238026,1737067840116,-158.893265,0.00022174,2]
[349238027,1737067840128,-1000.0,0.00022177,2]
[349238028,1737067840138,-690.41925499,0.000222,2]
[349238029,1737067840148,-690.41925496,0.000222,2]
[349238030,1737067840157,-690.41925496,0.000222,2]
[349238031,1737067840167,-690.41925496,0.000222,2]
[349238032,1737067840176,-500.0,0.00022209,2]
[349238033,1737067840185,-1000.0,0.00022217,2]
[349238034,1737067840195,-955.99612162,0.00022245,3]
[349238035,1737067840204,-5000.0,0.00022297,2]
[349238036,1737067840214,-5000.0,0.00022297,2]
[349238037,1737067840223,-5000.0,0.00022297,2]
[349238038,1737067840234,-5000.0,0.00022297,2]
[349238039,1737067840244,-5000.0,0.00022297,2]
[349238040,1737067840254,-518.63057846,0.00022325,2]
[349238041,1737067840263,-500.0,0.00022361,2]
[349238042,1737067840274,-551.4,0.00022366,3]
[349238043,1737067840284,-955.99612162,0.00022383,3]
[349238044,1737067840295,-151.0,0.00022383,7]
[349238045,1737067840305,-151.0,0.00022383,7]
[349238046,1737067840315,-162.535222,0.00022383,7]
[349238047,1737067840325,-1067.68,0.000224,14]
[349238048,1737067840334,-3156.35,0.000224,14]
[349238049,1737067840345,-6555.52,0.000224,2]
[349238050,1737067840355,-151.0,0.000224,7]
[349238051,1737067840365,-548.964824,0.000224,7]
[349238052,1737067840374,-548.964824,0.000224,7]
[349238053,1737067840384,-151.0,0.00022452,7]
[349238054,1737067840393,-151.0,0.00022452,7]
[349238055,1737067840403,-151.0,0.00022452,7]
[349238056,1737067840412,-151.0,0.00022452,7]
[349238057,1737067840423,-249.340078,0.00022452,7]
[349238058,1737067840432,-249.340078,0.00022452,7]
[349238059,1737067840441,-275.8671839,0.00022489,2]
[349238060,1737067840451,-300.0,0.000225,10]
[349238061,1737067840461,-551.4,0.00022503,3]
[349238062,1737067840471,-955.99612162,0.00022521,3]
[349238063,1737067840480,-151.0,0.00022549,7]
[349238064,1737067840489,-151.0,0.0002259,7]
[349238065,1737067840498,-150.0,0.000226,2]
[349238066,1737067840508,-1500.0,0.00022622,2]
[349238067,1737067840517,-1406.02244652,0.00022622,2]
[349238068,1737067840527,-551.4,0.0002264,3]
[349238069,1737067840537,-955.99612162,0.00022659,3]
[349238070,1737067840546,-151.0,0.00022659,7]
[349238071,1737067840556,-548.964824,0.00022659,7]
[349238072,1737067840566,-548.964824,0.00022659,7]
[349238073,1737067840575,-151.0,0.00022674,7]
[349238075,1737067840585,-151.0,0.00022674,7]
[349238077,1737067840595,-575.81820194,0.00022757,2]
[349238079,1737067840605,-551.4,0.00022777,3]
[349238081,1737067840615,-955.99612162,0.00022797,3]
[349238082,1737067840624,-487.49316551,0.000229,2]
[349238087,1737067840756,-551.4,0.00022914,3]
[349238089,1737067840767,-955.99612162,0.00022934,3]
[349238091,1737067840776,-10128.49670516,0.00023,60]
[349238093,1737067840786,-151.0,0.00023,7]
[349238095,1737067840795,-279.05699,0.00023,7]
[349238097,1737067840805,-151.0,0.00023,7]
[349238098,1737067840814,-151.0,0.00023,7]
[349238100,1737067840827,-151.0,0.00023,7]
[349238101,1737067840837,-151.0,0.00023,7]
[349238102,1737067840846,-249.340078,0.00023,7]
[349238103,1737067840856,-249.340078,0.00023,7]
[349238104,1737067840866,-249.340078,0.00023,7]
[349238105,1737067840876,-249.340078,0.00023,7]
[349238106,1737067840885,-151.0,0.00023,7]
[349238107,1737067840894,-151.0,0.00023,7]
[349238108,1737067840903,-7438.69753278,0.00023,3]
[349238109,1737067840913,-548.964824,0.00023,7]
[349238110,1737067840924,-548.964824,0.00023,7]
[349238111,1737067840933,-548.964824,0.00023,7]
[349238112,1737067840943,-548.964824,0.00023,7]
[349238113,1737067840952,-7438.69753278,0.00023,2]
[349238114,1737067840962,-275.8671839,0.00023027,2]
[349238115,1737067840972,-551.4,0.00023051,3]
[349238116,1737067840982,-955.99612162,0.00023072,3]
[349238117,1737067840992,-1500.0,0.00023178,2]
[349238118,1737067841001,-551.4,0.00023188,3]
[349238119,1737067841011,-955.99612162,0.0002321,3]
[349238120,1737067841020,-1500.0,0.00023219,2]
[349238121,1737067841030,-151.0,0.000233,9]
[349238122,1737067841039,-151.0,0.000233,7]
[349238123,1737067841049,-551.4,0.00023325,3]
[349238124,1737067841059,-955.99612162,0.00023348,3]
[349238125,1737067841068,-151.0,0.000234,9]
[349238126,1737067841078,-153.0,0.00023428,2]
[349238127,1737067841087,-153.0,0.00023428,2]
[349238128,1737067841096,-153.0,0.00023428,2]
[349238129,1737067841105,-153.0,0.00023429,2]
[349238130,1737067841115,-153.0,0.00023431,2]
[349238131,1737067841124,-153.0,0.00023431,2]
[349238132,1737067841133,-153.0,0.00023431,2]
[349238133,1737067841143,-153.0,0.00023432,2]
[349238134,1737067841152,-153.0,0.00023435,2]
[349238135,1737067841161,-153.0,0.00023435,2]
[349238136,1737067841171,-153.0,0.00023435,2]
[349238137,1737067841180,-153.0,0.00023435,2]
[349238138,1737067841189,-22553.74432538,0.00023436,2]
[349238139,1737067841199,-153.0,0.00023438,2]
[349238140,1737067841209,-153.0,0.00023438,2]
[349238141,1737067841220,-153.0,0.00023438,2]
[349238142,1737067841233,-551.4,0.00023462,3]
[349238143,1737067841243,-151.0,0.00023465,7]
[349238144,1737067841254,-6124.50052429,0.00023465,7]
[349238145,1737067841265,-249.340078,0.00023468,7]
[349238146,1737067841275,-249.340078,0.00023468,7]
[349238147,1737067841285,-151.0,0.00023486,7]
[349238148,1737067841294,-548.964824,0.00023486,7]
[349238149,1737067841304,-548.964824,0.00023486,7]
[349238150,1737067841314,-955.99612162,0.00023486,3]
[349238151,1737067841323,-519.64102545,0.000235,2]
[349238152,1737067841333,-151.0,0.0002352,7]
[349238153,1737067841343,-1805.0,0.00023531,7]
[349238154,1737067841352,-587.0,0.00023553,2]
[349238155,1737067841361,-780.86707912,0.0002356,2]
[349238156,1737067841371,-151.0,0.00023561,7]
[349238157,1737067841381,-151.0,0.00023561,7]
[349238158,1737067841392,-249.340078,0.00023561,7]
[349238159,1737067841402,-249.340078,0.00023561,7]
[349238160,1737067841413,-151.0,0.00023561,7]
[349238161,1737067841422,-548.964824,0.00023561,7]
[349238162,1737067841432,-548.964826,0.00023561,7]
[349238163,1737067841442,-157.64212627,0.00023565,2]
[349238164,1737067841451,-3267.82756878,0.00023565,2]
[349238165,1737067841461,-275.8671839,0.00023565,2]
[349238166,1737067841470,-7438.69753278,0.0002357,3]
[349238167,1737067841480,-551.4,0.00023599,3]
[349238168,1737067841490,-2000.0,0.000236,2]
[349238169,1737067841502,-2000.0,0.000236,2]
[349238170,1737067841511,-150.0,0.000236,2]
[349238171,1737067841521,-151.0,0.00023617,7]
[349238172,1737067841531,-15201.912774,0.00023617,59]
[349238173,1737067841541,-151.0,0.00023617,7]
[349238174,1737067841550,-151.0,0.00023617,7]
[349238175,1737067841560,-249.340078,0.00023617,7]
[349238176,1737067841570,-249.340078,0.00023617,7]
[349238177,1737067841579,-249.340078,0.00023617,7]
[349238178,1737067841589,-249.340078,0.00023617,7]
[349238179,1737067841599,-955.99612162,0.00023624,3]
[349238180,1737067841609,-150.03,0.00023661,7]
[349238181,1737067841619,-150.03,0.00023661,2]
[349238182,1737067841629,-261.17233158,0.00023661,7]
[349238183,1737067841639,-150.16247437,0.00023661,7]
[349238184,1737067841649,-500.0,0.00023661,7]
[349238185,1737067841659,-150.03,0.00023661,7]
[349238186,1737067841669,-150.03,0.00023661,7]
[349238187,1737067841679,-199.78811268,0.00023661,7]
[349238188,1737067841689,-152.18950846,0.00023661,7]
[349238189,1737067841698,-500.0,0.00023661,7]
[349238190,1737067841708,-500.0,0.00023661,7]
[349238191,1737067841717,-150.03,0.00023661,2]
[349238192,1737067841728,-150.03,0.00023661,7]
[349238193,1737067841745,-150.24,0.00023661,7]
[349238194,1737067841755,-151.0,0.00023665,7]
[349238195,1737067841767,-157338.61755151,0.00023665,61]
[349238196,1737067841780,-125394.58334934,0.00023665,61]
[349238197,1737067841796,-2983.41,0.00023665,61]
[349238198,1737067841808,-862.04420907,0.00023665,61]
[349238199,1737067841823,-6460.0,0.00023665,61]
[349238200,1737067841837,-3130.73686625,0.00023665,61]
[349238201,1737067841848,-6450.72851847,0.00023665,61]
[349238202,1737067841860,-17356.95599262,0.00023665,61]
[349238203,1737067841878,-1363.14015772,0.00023665,61]
[349238204,1737067841889,-420.87043536,0.00023665,61]
[349238205,1737067841901,-502.89526421,0.00023665,61]
[349238206,1737067841913,-1000.0,0.00023665,61]
[349238255,1737067843895,-804.82261135,0.000217,2]
[349238257,1737067843907,-195.17738865,0.000217,2]
[349238259,1737067843916,-2594.53463144,0.00023665,61]
[349238271,1737067844080,-1148.4465268,0.00023665,61]
[349238273,1737067844092,-601.63635246,0.00023665,61]